{"text_format":"1","workbook":"xlsx","n_sheets":13,"sheets":["1. Forside","2. Samlet prisloft","3. Driftsomkostninger","4. Historiske investeringer","5. Gennemførte investeringer","6. Korrektion investeringer","7. Planlagte investeringer","8. 1-1 omkostninger","9. Miljø- og servicemål","10. Klimatilpasning","11. Nettofinansielle poster","12. Over- eller underdækning","13. Kontrol med indtægtsrammen"],"not_rendered":{"charts":0,"images":0,"macros":1,"external_links":0,"defined_names":0,"comments":0,"pivot_tables":0},"unopened":[],"bounds":{"document_bytes":16777216,"sheet_cells":100000,"rows_first":2000,"rows_last":500,"rows_between":2000,"halvings":0,"cell_chars":16384,"cell_head_chars":4096},"cells_cut":0,"cells_raw":0,"read":"whole","date_system":"1900"}

{"sheet":"1. Forside","index":0,"n_rows":27,"n_cols":4,"rows_kept":27,"cut":false,"hidden":false,"merged":[[26,3,26,5],[25,3,25,5],[24,3,24,5],[23,3,23,5],[22,3,22,5],[21,3,21,5],[20,3,20,5],[19,3,19,5],[18,3,18,5],[7,3,7,5],[12,3,12,5],[15,3,15,5],[16,3,16,5],[17,3,17,5]]}
["Herning Vand A/S (spildevand)"]
[]
[]
[]
[]
[]
[]
[null,null,null,"Bilag A"]
[]
[]
[]
[]
[null,null,null,"Indholdsfortegnelse"]
[]
[]
[null,null,"Fane nr. 2","Samlet prisloft "]
[null,null,"Fane nr. 3","Driftsomkostninger"]
[null,null,"Fane nr. 4","Historiske investeringer "]
[null,null,"Fane nr. 5","Gennemførte investeringer"]
[null,null,"Fane nr. 6","Korrektion investeringer"]
[null,null,"Fane nr. 7","Planlagte investeringer"]
[null,null,"Fane nr. 8","1:1 omkostninger"]
[null,null,"Fane nr. 9","Miljø- og servicemål"]
[null,null,"Fane nr. 10","Klimatilpasning"]
[null,null,"Fane nr. 11","Nettofinansielle poster"]
[null,null,"Fane nr. 12","Over- eller underdækning"]
[null,null,"Fane nr. 13","Kontrol med indtægtsrammen og oversigt over ekstraordinære effektiviseringsgevinster"]

{"sheet":"2. Samlet prisloft","index":1,"n_rows":38,"n_cols":6,"rows_kept":38,"cut":false,"hidden":false,"merged":[[3,1,3,5]]}
[{"$f":"'1. Forside'!A1","v":"Herning Vand A/S (spildevand)"}]
[]
[]
[null,"Fane 2. Samlet prisloft for 2015"]
[]
[null,"Driftsomkostninger"]
[null,"Driftsomkostninger i prisloftet for 2014",{"$f":"'3. Driftsomkostninger'!C20","v":23006244.765000001},"kr."]
[null,"Bortfald af væsentlige omkostninger",{"$f":"-'3. Driftsomkostninger'!C16","v":0},"kr."]
[null,"Korrektion for prisudviklingen 2014-2015",{"$f":"'3. Driftsomkostninger'!C22","v":18404.995812000001},"kr."]
[null,"Forhøjelse til effektivt niveau iht. benchmarkingen",{"$f":"'3. Driftsomkostninger'!C28","v":0},"kr."]
[null,"Korrektion for generelt effektiviseringskrav",{"$f":"-'3. Driftsomkostninger'!C34","v":-101227.476966},"kr."]
[null,"Korrektion for individuelt effektiviseringskrav",{"$f":"-'3. Driftsomkostninger'!C43","v":-871361.52937499993},"kr."]
[null,"Driftsomkostninger i alt",{"$f":"SUM(C7:C12)","v":22052060.754470997},"kr.",{"$f":"C13","v":22052060.754470997}," kr."]
[null,"Investeringer"]
[null,"Tillæg for historiske investeringer",{"$f":"'4. Historiske investeringer'!C9","v":75777570.209747255},"kr."]
[null,"Tillæg for gennemførte investeringer i 2011-2013",{"$f":"'5. Gennemførte investeringer'!F42","v":3280393.2983982689},"kr."]
[null,"Korrektion af tillæg for planlagte investeringer vedrørende 2013  ",{"$f":"'6. Korrektion investeringer'!C10","v":-1063609.1133333333},"kr."]
[null,"Tillæg for planlagte investeringer i 2014 og 2015",{"$f":"'7. Planlagte investeringer'!F20","v":2273560},"kr."]
[null,"Investeringstillæg i alt",{"$f":"SUM(C15:C18)","v":80267914.394812196},"kr.",{"$f":"C19","v":80267914.394812196}," kr."]
[null,"Øvrige omkostninger mv."]
[null,"Tillæg for 1:1 omkostninger i 2015",{"$f":"'8. 1-1 omkostninger'!C10","v":36918500},"kr."]
[null,"Tillæg vedr. revisorerklæringer og DANVA/FVD-kontingent",{"$f":"'8. 1-1 omkostninger'!C18","v":120400},"kr."]
[null,"Korrektion ift. faktiske 1:1 omkostninger i 2013",{"$f":"'8. 1-1 omkostninger'!C24","v":-167869},"kr."]
[null,"Tillæg for driftsomkostninger til miljø- og servicemål i 2015",{"$f":"'9. Miljø- og servicemål'!C8","v":0},"kr."]
[null,"Korrektion ift. faktiske driftsomkostninger til miljø- og servicemål i 2013",{"$f":"'9. Miljø- og servicemål'!C15","v":0},"kr."]
[null,"Tillæg for driftsomkostninger til medfinansiering af klimatilpasningsprojekter i 2015",{"$f":"'10. Klimatilpasning'!C12","v":2064777},"kr."]
[null,"Korrektion ift. faktiske omkostninger til medfinansiering af klimatilpasningsprojekter i 2013",{"$f":"'10. Klimatilpasning'!C19","v":-889391},"kr."]
[null,"Tillæg/fradrag for nettofinansielle poster i 2015",{"$f":"'11. Nettofinansielle poster'!C9","v":1783750},"kr."]
[null,"Korrektion ift. faktiske nettofinansielle poster i 2013",{"$f":"'11. Nettofinansielle poster'!C16","v":373416},"kr."]
[null,"Øvrige omkostninger mv. i alt",{"$f":"SUM(C21:C29)","v":40203583},"kr.",{"$f":"C30","v":40203583}," kr."]
[null,"Historisk over- eller underdækning"]
[null,"Tillæg/fradrag for over- eller underdækning til og med 2010",{"$f":"'12. Over- eller underdækning'!C11","v":-4876505.2486772491},"kr.",{"$f":"C32","v":-4876505.2486772491}," kr."]
[null,"Korrektion i forhold til tidligere indtægtsramme "]
[null,"Korrektion for overholdelse af indtægtsramme i prisloft 2013",{"$f":"'13. Kontrol med indtægtsrammen'!E27","v":7607930.9755556732},"kr.",{"$f":"C34","v":7607930.9755556732}," kr."]
[null,"Samlet prisloft"]
[null,"Indtægtsramme i 2015 ",null,null,{"$f":"SUM(E13:E34)","v":145254983.87616163}," kr."]
[null,"Debiteret vandmængde i 2013",null,null,4164166," m3"]
[null,"Prisloft 2015",null,null,{"$f":"E36/E37","v":34.882130990013756}," kr./m3"]

{"sheet":"3. Driftsomkostninger","index":2,"n_rows":43,"n_cols":4,"rows_kept":43,"cut":false,"hidden":false,"merged":[[3,1,3,3]]}
[{"$f":"'1. Forside'!A1","v":"Herning Vand A/S (spildevand)"}]
[]
[]
[null,"Fane 3. Driftsomkostninger "]
[]
[null,"Driftsomkostningerne i prisloftet for 2014"]
[null,"Korrigerede driftsomkostninger i prisloftet for 2013 (DOiPL 2013)",22666251,"kr."]
[null,"Prisfremskrivning 1,5 pct.",{"$f":"0.015*SUM(C7:C7)","v":339993.76500000001},"kr."]
[null,"Generelt effektiviseringskrav (0 pct.)",0,"kr."]
[null,"Individuelt effektiviseringskrav ",0,"kr."]
[null,"Driftsomkostningerne i prisloftet for 2014 (DOiPL 2014)",{"$f":"SUM(C7:C10)","v":23006244.765000001},"kr."]
[]
[]
[null,"Korrektion for forventet bortfald af væsentlige omkostninger"]
[null,"Selskabets indberettede bortfald af væsentlige omkostninger inden 2015",0,"kr."]
[null,"Korrektion for forventet bortfald ",{"$f":"SUM(C15:C15)","v":0},"kr."]
[]
[]
[null,"Korrektion for prisudviklingen fra 2014-2015"]
[null,"Driftsomkostningerne i prisloftet for 2014",{"$f":"C11-C16","v":23006244.765000001},"kr."]
[null,"Prisudvikling 2014 - 2015 ",0.08,"pct."]
[null,"Korrektion for prisudvikling",{"$f":"C20*(C21/100)","v":18404.995812000001},"kr."]
[]
[]
[null,"Eventuel forhøjelse til effektivt niveau iht. benchmarkingen"]
[null,"Selskabets effektive driftsomkostninger iht. benchmarkingen",16550692.653000001,"kr."]
[null,"Selskabets pristalskorrigerede driftsomkostninger i 2015-niveau",{"$f":"C20+C22","v":23024649.760811999},"kr."]
[null,"Eventuel forhøjelse til effektivt niveau",{"$f":"IF(C27>C26,0,C26-C27)","v":0},"kr."]
[]
[]
[null,"Korrektion for generelt effektiviseringskrav"]
[null,"Driftsomkostningerne i prisloftet for 2014",{"$f":"C20","v":23006244.765000001},"kr. "]
[null,"Generelt effektiviseringskrav ",0.44,"pct."]
[null,"Endeligt generelt effektiviseringskrav",{"$f":"C32*(C33/100)","v":101227.476966},"kr. "]
[]
[]
[null,"Korrektion for individuelt effektiviseringskrav"]
[null,"Rå effektiviseringspotentiale",6455552.3470000001,"kr."]
[null,"Effektiviseringspotentiale efter eventuel korrektion for særlige forhold",6455552.3470000001,"kr."]
[null,"Effektiviseringspotentiale efter forsigtighedshensyn",3485446.1174999997,"kr."]
[null,"Effektiviseringspotentiale efter eventuel korrektion for sammensætning af signifikante costdrivere",3485446.1174999997,"kr. "]
[null,"Umiddelbart effektiviseringskrav",{"$f":"C41/4","v":871361.52937499993},"kr."]
[null,"Endeligt individuelt effektiviseringskrav",{"$f":"IF(C42>0.05*C20,0.05*C20,IF(C42<0.01*C20,0,C42))","v":871361.52937499993},"kr. "]

{"sheet":"4. Historiske investeringer","index":3,"n_rows":9,"n_cols":4,"rows_kept":9,"cut":false,"hidden":false,"merged":[[3,1,3,2]]}
[{"$f":"'3. Driftsomkostninger'!A1","v":"Herning Vand A/S (spildevand)"}]
[]
[]
[null,"Fane 4. Historiske investeringer "]
[]
[null,"Tillæg for historiske investeringer "]
[null,"Værdi af selskabets materielle anlægsaktiver pr. 1. januar 2010",3292720473.4455409,"kr."]
[null,"Den årlige standardafskrivning på de materielle anlægsaktiver iht. POLKA",75777570.209747255,"kr."]
[null,"Tillæg i alt i 2015",{"$f":"C8","v":75777570.209747255},"kr."]

{"sheet":"5. Gennemførte investeringer","index":4,"n_rows":42,"n_cols":7,"rows_kept":42,"cut":false,"hidden":false,"merged":[[3,1,3,5],[6,5,6,6]]}
[{"$f":"'4. Historiske investeringer'!A1","v":"Herning Vand A/S (spildevand)"}]
[]
[]
[null,"Fane 5. Gennemførte investeringer i 2010 - 2013 "]
[]
[null,"Tillæg for gennemførte investeringer i 2013"]
[null," Beskrivelse af investeringen   ","Årstal ","Std. levetid (år)   "," Anskaffelses-pris (kr.)","Afskrivning "]
[null,"Arbejdsplads   ",2013,5,232873,{"$f":"E8/D8","v":46574.6},"kr."]
[null,"Brønde   ",2013,75,2830670,{"$f":"E9/D9","v":37742.26666666667},"kr."]
[null,"Jordbassin Klasse A   ","2013 ",50,7548279,150965.57999999999,"kr."]
[null,"Ledningsnet = Ø 200 mm   ","2013 ",75,8629318,115057.57333333333,"kr."]
[null,"Pumpestationer i brønde (< 6,25 m2), Mek/EL   ","2013 ",20,325742,16287.1,"kr."]
[null,"Pumpestationer i brønde (< 6,25 m2), SRO   ","2013 ",10,94647,9464.7000000000007,"kr."]
[null,"Pumpestationer i underjordiske bygværker (<50 m2), Mek/El   ","2013 ",20,115925,5796.25,"kr."]
[null,"Ø 1000 mm < Ledningsnet = Ø 1200 mm   ","2013 ",75,39041,520.54666666666662,"kr."]
[null,"Ø 200 mm < Ledningsnet = Ø 500 mm   ","2013 ",75,5570952,74279.360000000001,"kr."]
[null,"Ø 500 mm < Ledningsnet = Ø 800 mm   ","2013 ",75,2270294,30270.586666666666,"kr."]
[null,"Ø 800 mm < Ledningsnet = Ø 1000 mm   ","2013 ",75,3154365,42058.2,"kr."]
[null,"Arbejdsplads   ","2013 ",5,26959,5391.8,"kr."]
[null,"Køretøjer, personbil   ","2013 ",5,394949,78989.8,"kr."]
[null,"Pumpestationer i brønde (< 6,25 m2), SRO   ","2013 ",10,212133,21213.3,"kr."]
[null,"Brønde   ","2013 ",50,5133,102.66,"kr."]
[null,"Brønde   ","2013 ",50,2567,51.34,"kr."]
[null,"Brønde   ","2013 ",50,2567,51.34,"kr."]
[null,"Brønde   ","2013 ",50,20532,410.64,"kr."]
[null,"Brønde   ","2013 ",50,2567,51.34,"kr."]
[null,"Brønde   ","2013 ",50,94963,1899.26,"kr."]
[null,"Brønde   ","2013 ",50,12833,256.66000000000003,"kr."]
[null,"Brønde   ","2013 ",50,7700,154,"kr."]
[null,"Brønde   ","2013 ",50,53898,1077.96,"kr."]
[null,"Brønde   ","2013 ",50,2567,51.34,"kr."]
[null,"Brønde   ","2013 ",50,107796,2155.92,"kr."]
[null,"Brønde   ","2013 ",50,2567,51.34,"kr."]
[null,"Brønde   ","2013 ",50,5133,102.66,"kr."]
[null,"Brønde   ","2013 ",50,5133,102.66,"kr."]
[null,"Brønde   ","2013 ",50,5133,102.66,"kr."]
[null,"Brønde   ","2013 ",50,17966,359.32,"kr."]
[null,"Brønde   ","2013 ",50,2567,51.34,"kr."]
[null,"Brønde   ","2013 ",50,2567,51.34,"kr."]
[null,"Tillæg for 2013 ",null,null,null,{"$f":"SUM(F8:F39)","v":641695.44333333336},"kr."]
[null,"Tillæg for 2010 - 2012",null,null,null,2638697.8550649355,"kr."]
[null,"Samlet tillæg for gennemførte investeringer",null,null,null,{"$f":"F40+F41","v":3280393.2983982689},"kr."]

{"sheet":"6. Korrektion investeringer","index":5,"n_rows":10,"n_cols":4,"rows_kept":10,"cut":false,"hidden":false,"merged":[[3,1,3,3]]}
[{"$f":"'5. Gennemførte investeringer'!A1","v":"Herning Vand A/S (spildevand)"}]
[]
[]
[null,"Fane 6. Korrektion af tillæg for planlagte investeringer"]
[]
[null,"Korrektion af tillæg for planlagte investeringer vedr. 2013"]
[null,"Tillæg for planlagte investeringer i 2013 i prisloft 2013",953333,"kr."]
[null,"Tillæg for planlagte investeringer i 2013 i prisloft 2014",1393667,"kr."]
[null,"Selskabets faktiske afskrivninger på gennemførte investeringer i 2013",{"$f":"'5. Gennemførte investeringer'!F40","v":641695.44333333336},"kr."]
[null,"Korrektion af tillæg for planlagte investeringer vedr. 2013",{"$f":"C9-C7+C9-C8","v":-1063609.1133333333},"kr."]

{"sheet":"7. Planlagte investeringer","index":6,"n_rows":20,"n_cols":7,"rows_kept":20,"cut":false,"hidden":false,"merged":[[6,5,6,6],[3,1,3,6]]}
[{"$f":"'6. Korrektion investeringer'!A1","v":"Herning Vand A/S (spildevand)"}]
[]
[]
[null,"Fane 7. Planlagte investeringer "]
[]
[null,"Tillæg for planlagte investeringer i 2014 og 2015"]
[null,"Beskrivelse af investeringen   ","Årstal ","Std. levetid (år)   ","Anskaffelses-pris (kr.)   ","Afskrivning"]
[null,"Ledningsnet = Ø 200 mm   ",2014,75,47635000,{"$f":"E8/D8","v":635133.33333333337},"kr."]
[null,"Jordbassin Klasse B   ",2014,50,24363000,{"$f":"E9/D9","v":487260},"kr."]
[null,"Pumpestationer i brønde (< 6,25 m2), Mek/EL   ",2014,20,500000,{"$f":"E10/D10","v":25000},"kr."]
[null,"Køretøjer, små lastvogne (< 3.500 kg.)   ",2014,5,350000,70000,"kr."]
[null,"Administrationbygninger   ",2014,75,8000000,106666.66666666667,"kr."]
[null,"Ledningsnet = Ø 200 mm   ",2015,75,43236000,576480,"kr."]
[null,"Jordbassin Klasse B   ",2015,50,12401000,248020,"kr."]
[null,"Strømpeforing = Ø 200 mm   ",2015,50,1500000,30000,"kr."]
[null,"Køretøjer, små lastvogne (< 3.500 kg.)   ",2015,5,350000,70000,"kr."]
[null,"Pumpestationer i brønde (< 6,25 m2), Mek/EL   ",2015,20,500000,{"$f":"E17/D17","v":25000},"kr."]
[null,"Tillæg for 2014",null,null,null,{"$f":"SUMIF(C8:C16,\"2014\",F8:F16)","v":1324060.0000000002},"kr."]
[null,"Tillæg for 2015",null,null,null,{"$f":"SUMIF(C8:C17,\"2015\",F8:F17)","v":949500},"kr."]
[null,"Tillæg i alt",null,null,null,{"$f":"F18+F19","v":2273560},"kr."]

{"sheet":"8. 1-1 omkostninger","index":7,"n_rows":24,"n_cols":4,"rows_kept":24,"cut":false,"hidden":false,"merged":[[3,1,3,3],[14,1,14,3],[20,1,20,3]]}
[{"$f":"'7. Planlagte investeringer'!A1","v":"Herning Vand A/S (spildevand)"}]
[]
[]
[null,"Fane 8. 1:1 omkostninger"]
[]
[null,"Tillæg for budgetterede 1:1 omkostninger i 2015"]
[null,"Betaling til Forsyningssekretariatet",16500,"kr."]
[null,"Køb af varer og tjenesteydelser hos et andet prisloftreguleret vandselskab",36502000,"kr."]
[null,"Ejendomsskatter",400000,"kr."]
[null,"Tillæg i alt ",{"$f":"SUM(C7:C9)","v":36918500},"kr."]
[]
[]
[]
[]
[null,"Tillæg for budgetterede nødvendige udgifter til revisorerklæringer samt ordinært medlemskab af DANVA og FVD i 2015"]
[null,"Betaling for ordinært medlemskab af DANVA/FVD",100400,"kr."]
[null,"Betaling for revisorerklæringer",20000,"kr."]
[null,"Tillæg i alt ",{"$f":"SUM(C16:C17)","v":120400},"kr."]
[]
[]
[null,"Korrektion af tillæg for faktiske 1:1 omkostninger (inkl. revisorerklæringer og ordinært medlemskab af DANVA/FVD) i 2013"]
[null,"Selskabets faktiske 1:1 omkostninger mv. i 2013, jf. reguleringsregnskabet",3952381,"kr."]
[null,"Tillæg for budgetterede 1:1 omkostninger mv. i prisloft 2013",4120250,"kr."]
[null,"Korrektion af tillæg for budgetterede 1:1 omkostninger mv. i 2013",{"$f":"C22-C23","v":-167869},"kr."]

{"sheet":"9. Miljø- og servicemål","index":8,"n_rows":15,"n_cols":4,"rows_kept":15,"cut":false,"hidden":false,"merged":[[3,1,3,3]]}
[{"$f":"'8. 1-1 omkostninger'!A1","v":"Herning Vand A/S (spildevand)"}]
[]
[]
[null,"Fane 9. Driftsomkostninger til miljø- og servicemål "]
[]
[null,"Tillæg for budgetterede driftsomkostninger til miljø- og servicemål i 2015"]
[null,null,0,"kr."]
[null,"Tillæg i alt",{"$f":"SUM(C7:C7)","v":0},"kr."]
[]
[]
[]
[null,"Korrektion af tillæg for faktiske driftsomkostninger til miljø- og servicemål i 2013"]
[null,"Selskabets faktiske driftsomkostninger til miljø- og servicemål i 2013, jf. reguleringsregnskabet",0,"kr."]
[null,"Tillæg for budgetterede driftsomkostninger til miljø- og servicemål i prisloft 2013",0,"kr."]
[null,"Korrektion af tillæg for budgetterede driftsomkostninger til miljø- og servicemål i 2013",{"$f":"C13-C14","v":0},"kr."]

{"sheet":"10. Klimatilpasning","index":9,"n_rows":19,"n_cols":4,"rows_kept":19,"cut":false,"hidden":false,"merged":[[3,1,3,3],[15,1,15,3],[6,1,6,3]]}
[{"$f":"'9. Miljø- og servicemål'!A1","v":"Herning Vand A/S (spildevand)"}]
[]
[]
[null,"Fane 10. Medfinansiering af klimatilpasningsprojekter"]
[]
[]
[null,"Tillæg for budgetterede omkostninger til medfinansiering af klimatilpasningsprojekter i 2015"]
[null,"Hammerum Å/Kløvervej (godkendt i 2013)",117415,"kr."]
[null,"Knudmosen/Miljøvej (godkendt i 2013)",356968,"kr."]
[null,"Lillelund Engpark (godkendt i 2013)",416220,"kr. "]
[null,"Herningsholm Å/Gullestrup (godkendt i 2014)",1174174,"kr."]
[null,"Tillæg i alt",{"$f":"SUM(C8:C11)","v":2064777},"kr."]
[]
[]
[]
[null,"Korrektion af tillæg for faktiske omkostninger til medfinansiering af klimatilpasningsprojekter i 2013"]
[null,"Selskabets faktiske driftsomkostninger til klimatilpasningsprojekter i 2013, jf. reguleringsregnskabet",0,"kr."]
[null,"Tillæg for budgetterede driftsomkostninger til klimatilpasningsprojekter i prisloft 2013",889391,"kr."]
[null,"Korrektion af tillæg for budgetterede omkostninger til klimatilpasningsprojekter i 2013",{"$f":"C17-C18","v":-889391},"kr."]

{"sheet":"11. Nettofinansielle poster","index":10,"n_rows":16,"n_cols":4,"rows_kept":16,"cut":false,"hidden":false,"merged":[[3,1,3,3]]}
[{"$f":"'10. Klimatilpasning'!A1","v":"Herning Vand A/S (spildevand)"}]
[]
[]
[null,"Fane 11. Nettofinansielle poster"]
[]
[null,"Tillæg for budgetterede nettofinansielle poster i 2015"]
[null,"Budgetterede renteudgifter og gebyrer i 2015",2283750,"kr."]
[null,"Budgetterede renteindtægter i 2015",500000,"kr."]
[null,"Tillæg/fradrag i alt",{"$f":"C7-C8","v":1783750},"kr."]
[]
[]
[]
[null,"Korrektion af tillæg for faktiske nettofinansielle poster i 2013"]
[null,"Selskabets faktiske nettofinansielle poster i 2013, jf. reguleringsregnskabet",-678584,"kr."]
[null,"Tillæg for budgetterede nettofinansielle poster i prisloft 2013",-1052000,"kr."]
[null,"Korrektion af tillæg for budgetterede nettofinansielle poster i 2013",{"$f":"C14-C15","v":373416},"kr."]

{"sheet":"12. Over- eller underdækning","index":11,"n_rows":11,"n_cols":4,"rows_kept":11,"cut":false,"hidden":false,"merged":[[3,1,3,3]]}
[{"$f":"'11. Nettofinansielle poster'!A1","v":"Herning Vand A/S (spildevand)"}]
[]
[]
[null,"Fane 12. Over- eller underdækning til og med 2010"]
[]
[null,"Tillæg/fradrag for over- eller underdækning til og med 2010"]
[null,"Opgjort over- eller underdækning per 31. december 2010",-49048753,"kr."]
[null,"Heraf beløb indregnet i prislofterne for 2011 - 2014",-19789721.507936507,"kr."]
[null,"Endnu ikke indregnet over- eller underdækning",{"$f":"C7-C8","v":-29259031.492063493},"kr."]
[null,"Resterende indregningsperiode (fastsat i prisloftet for 2012)",6,"år"]
[null,"Tillæg/fradrag i alt",{"$f":"IF(C7=0,0,C9/C10)","v":-4876505.2486772491},"kr."]

{"sheet":"13. Kontrol med indtægtsrammen","index":12,"n_rows":38,"n_cols":12,"rows_kept":38,"cut":false,"hidden":false,"merged":[[3,1,3,5],[30,1,30,4],[5,1,5,5]]}
[{"$f":"'12. Over- eller underdækning'!A1","v":"Herning Vand A/S (spildevand)"}]
[]
[]
[null,"Fane 13. Korrektion for overholdelse af indtægtsrammen i prisloftet for 2013"]
[]
[null,"Samlet opgørelse vedrørende overholdelse af indtægtsrammen i prisloftet for 2013"]
[null,"Indtægtsramme i prisloftet for 2013",null,null,138352305.904154,"kr."]
[null,"Ikke anvendt likviditet vedrørende investeringer i 2013"]
[null,"Tillæg for historiske investeringer ",89148608.928598329,"kr."]
[null,"Tillæg for gennemførte investeringer i 2011",1540926,"kr."]
[null,"Korrektion af tillæg for planlagte investeringer i 2011",-402600,"kr."]
[null,"Tillæg for planlagte investeringer i 2012 og 2013",2357733,"kr."]
[null,"Indtægter fra tilslutningsbidrag",2490685,"kr."]
[null,"Indtægter fra salg af anlægsaktiver",65000,"kr."]
[null,"Erstatninger vedr. anlægsaktiver mv.",0,"kr."]
[null,"Ekstraordinær effektiviseringsgevinst anvendt til investeringer",0,"kr."]
[null,"Udgifter til investeringer",-56355469,"kr."]
[null,"Ikke anvendt likviditet vedr. investeringer i alt",{"$f":"SUM(C9:C17)","v":38844883.928598329},"kr.",{"$f":"IF(C18<0,0,-C18)","v":-38844883.928598329},"kr."]
[null,"Ekstraordinære effektiviseringsgevinster anvendt til takstnedsættelse"]
[null,"Ekstraordinær effektiviseringsgevinst anvendt til takstnedsættelse",0,"kr.",{"$f":"-C20","v":0},"kr."]
[null,"Korrektion af ikke opkrævet tillæg fra 2011 i prisloft 2013"]
[null,"Korrektion af ikke opkrævet tillæg fra 2011 i prisloft 2013",0,"kr.",{"$f":"-C22","v":0},"kr."]
[null,"Indtægter fra primære aktiviteter mv."]
[null,"Indtægter fra kubikmetertakster, faste takster, særbidrag, målergebyrer samt andre takster og gebyrer",91899491,"kr."]
[null,"Andre indtægter i prisloftåret, som selskabet har opnået i forbindelse med eller som følge af selskabets primære aktiviteter",0,"kr."]
[null,"Indtægter fra primære aktiviteter mv. i alt",{"$f":"SUM(C24:C25)","v":91899491},"kr.",{"$f":"-C26","v":-91899491},"kr."]
[null,"Tillæg/fradrag i prisloftet for 2015 i alt",null,null,{"$f":"E7+E18+E20+E22+E26","v":7607930.9755556732},"kr."]
[]
[]
[]
[null,"Oversigt over ekstraordinære effektiviseringsgevinster"]
[]
[null,null,2012,null,2013,null,2014,null,2015,null,2016]
[null,"Indhentet ekstraordinær effektiviseringsgevinst",907498,"kr.",2009165,"kr.",null,"kr.",null,"kr.",null,"kr."]
[null,"Gevinst anvendt til investeringer",0,"kr.",0,"kr.",null,"kr.",null,"kr.",null,"kr."]
[null,"Gevinst anvendt til takstnedsættelse",0,"kr.",0,"kr.",null,"kr.",null,"kr.",null,"kr."]
[null,"Korrektion for  effektiviseringsgevinst der ikke er anvendt inden 4 år",0,"kr.",0,"kr.",null,"kr.",null,"kr.",{"$f":"IF(C38>SUM(E35:I36),C38-SUM(E35:I36),0)*-1","v":-907498},"kr."]
[null,"Resterende gevinst",{"$f":"C34-C35-C36","v":907498},"kr.",{"$f":"C38+E34-E35-E36","v":2916663},"kr.",{"$f":"E38+G34-G35-G36","v":2916663},"kr.",{"$f":"G38+I34-I35-I36","v":2916663},"kr.",{"$f":"K34-K35-K36+K37+I38","v":2009165},"kr."]